bitfinex/quotes_ETHUSD_20250525
["timestamp","ask_amount","ask_price","bid_price","bid_amount"]
[1748211144384,0.33210836,2536.8,2536.1,0.05]
[1748211144534,3.9423862,2536.6,2536.1,0.05]
[1748211144878,0.33210836,2536.7,2536.2,3.94281527]
[1748211145046,0.33210836,2536.7,2536.2,0.79359116]
[1748211145367,0.33210836,2536.7,2536.2,0.7515]
[1748211145833,4.27431987,2536.7,2536.2,0.7515]
[1748211146032,3.94229869,2536.6,2536.2,0.7515]
[1748211146375,0.33210836,2536.7,2536.1,3.99297493]
[1748211146376,3.94267437,2536.4,2536.1,0.05]
[1748211146531,3.94248468,2536.5,2536.1,0.05]
[1748211146727,3.94290671,2536.2,2536.1,0.05]
[1748211146958,4.49290671,2536.2,2536.1,0.05]
[1748211147270,5.25290671,2536.2,2536.1,0.05]
[1748211148145,1.31,2536.2,2536.1,0.05]
[1748211148334,0.33210836,2536.7,2536.6,3.94228494]
[1748211148534,0.33210836,2536.7,2536.3,0.03942518]
[1748211148736,0.33210836,2536.7,2536.1,0.05]
[1748211149270,0.7679,2536.5,2536.1,0.05]
[1748211149472,4.49290671,2536.2,2536.1,0.05]
[1748211149633,0.55,2536.3,2536.1,0.05]
[1748211149832,4.49290671,2536.2,2536.1,0.05]
[1748211150701,8.62790671,2536.2,2536.1,0.05]
[1748211151075,4.49290671,2536.2,2536.1,0.05]
[1748211151430,3.94284003,2536.3,2536.1,0.05]
[1748211151640,11.94189189,2536.9,2536.1,0.05]
[1748211151641,0.7932,2537.7,2536.1,0.05]
[1748211151771,3.9419049,2536.9,2536.3,3.9426066]
[1748211152116,3.9419049,2536.9,2536.1,0.05]
[1748211152117,0.55,2536.7,2536.1,0.05]
[1748211152328,0.55,2536.5,2536.1,0.05]
[1748211152539,0.33210836,2536.4,2536.1,0.05]
[1748211153041,0.55,2536.3,2536.1,0.05]
[1748211153222,3.94290671,2536.2,2536.1,0.05]
[1748211153555,0.33210836,2536.2,2536.1,0.05]
[1748211153821,3.94290671,2536.2,2536.1,0.05]
[1748211154021,0.55,2536.8,2536.1,0.05]
[1748211154222,3.94267214,2536.4,2536.1,0.05]
[1748211154424,0.55,2536.6,2536.1,3.99294154]
[1748211154629,3.9423067,2536.6,2536.1,3.99294154]
[1748211154986,3.94135267,2537.2,2536.2,0.7802]
[1748211155183,7.346364,2537.6,2537.1,3.94135929]
[1748211155433,7.346364,2537.6,2537.0,3.94155286]
[1748211155434,0.33210836,2537.5,2537.0,3.94155286]
[1748211155636,0.33210836,2537.5,2536.7,0.7802]
[1748211155931,0.33210836,2537.5,2537.4,3.94104201]
[1748211156084,0.33210836,2537.5,2537.4,0.7802]
[1748211156289,0.33210836,2537.5,2537.4,4.72124201]
[1748211156529,0.33210836,2537.5,2537.0,3.9416429]
[1748211156530,0.33210836,2537.5,2537.0,0.8042]
[1748211156728,0.33210836,2537.5,2537.4,3.94104201]
[1748211156946,0.36535238,2538.4,2537.5,3.94082383]
[1748211157098,4.30484402,2538.4,2537.9,3.94018071]
[1748211157300,0.36535238,2538.4,2537.9,3.94018071]
[1748211157542,0.36535238,2538.4,2538.2,3.93978768]
[1748211157847,0.05,2538.9,2538.3,3.93956209]
[1748211157848,0.36535238,2538.8,2538.3,3.93956209]
[1748211158018,0.33210836,2538.7,2538.2,0.7846]
[1748211158447,0.33210836,2538.7,2538.3,3.93964464]
[1748211158749,0.33210836,2538.7,2538.6,3.93917907]
[1748211159046,0.42016807,2539.0,2538.9,3.93871361]
[1748211159230,0.46708879,2539.8,2539.7,4.75867292]
[1748211159647,0.05,2539.9,2539.7,4.75867292]
[1748211159949,0.05,2539.9,2539.2,3.93820269]
[1748211159950,3.93733891,2539.8,2539.2,0.7856]
[1748211160146,3.93803447,2539.4,2539.2,0.7856]
[1748211160473,3.93782887,2539.5,2538.8,0.7856]
[1748211160748,0.79243477,2539.8,2538.9,3.93871361]
[1748211160954,3.93774113,2539.6,2538.9,3.93871361]
[1748211161147,3.93787193,2539.5,2538.8,0.7856]
[1748211161322,3.93766553,2539.6,2539.0,3.93850984]
[1748211161710,0.55,2539.8,2538.8,0.7856]
[1748211161910,3.93763119,2539.6,2539.0,3.93841191]
[1748211162246,3.93773401,2539.6,2538.9,3.93856593]
[1748211162451,0.55,2539.8,2538.8,0.7856]
[1748211162663,0.55,2539.7,2538.8,0.7856]
[1748211162862,0.7701,2539.8,2538.8,0.7856]
[1748211163063,3.93804111,2539.4,2538.8,4.72446015]
[1748211163369,0.05,2539.9,2539.2,3.93811437]
[1748211163666,0.05,2539.9,2538.8,4.72443921]
[1748211163864,0.05,2539.9,2539.6,3.93750119]
[1748211164166,0.05,2539.9,2539.6,0.7957]
[1748211164471,0.05,2539.9,2539.6,4.73324207]
[1748211164671,0.05,2539.9,2539.8,3.93731789]
[1748211164823,0.05,2539.9,2539.8,4.73748375]
[1748211165038,0.05,2539.9,2539.8,5.56560363]
[1748211165542,0.05,2539.9,2539.8,4.69811789]
[1748211166166,0.05,2539.9,2539.8,0.7608]
[1748211166382,0.05,2539.9,2539.8,4.6958]
[1748211166584,0.05,2539.9,2539.8,8.63311789]
[1748211166759,0.05,2539.9,2539.8,0.7608]
[1748211167238,0.05,2539.9,2539.8,4.69811789]
[1748211167843,0.05,2539.9,2539.8,5.56132968]
[1748211169781,0.05,2539.9,2539.8,9.49432968]
[1748211169984,0.05,2539.9,2539.8,0.7608]
[1748211170186,0.05,2539.9,2539.8,4.69811789]
[1748211172591,0.05,2539.9,2539.8,12.69811789]
[1748211172891,0.05,2540.9,2540.8,4.41456826]
[1748211173052,0.05,2540.9,2540.8,8.34756826]
[1748211173256,0.05,2540.9,2540.8,9.57591496]
[1748211173687,0.05,2540.9,2540.8,5.64291496]
[1748211174253,0.05,2540.9,2540.8,1.7071467]
[1748211174488,0.05,2540.9,2540.8,0.4788]
[1748211174687,0.05,2540.9,2540.7,3.932]
[1748211175114,3.98569742,2540.9,2540.7,3.932]
[1748211175316,3.98569742,2540.9,2540.4,8.69770785]
[1748211175317,3.98569412,2540.9,2540.4,8.69770785]
[1748211175540,3.98563949,2540.9,2540.4,4.7614]
[1748211175685,3.93615094,2540.6,2540.4,3.932]
[1748211176224,0.90347432,2540.9,2539.9,0.8294]
[1748211176225,4.83919634,2540.9,2539.9,0.8294]
[1748211176435,4.83919634,2540.9,2539.1,3.93839931]
[1748211176436,0.90347432,2540.9,2539.5,0.809]
[1748211176604,0.90347432,2540.9,2539.9,3.93704526]
[1748211176809,3.93642051,2540.4,2539.9,3.93704526]
[1748211177147,0.05,2540.9,2539.5,0.809]
[1748211177346,0.05,2540.9,2540.8,3.93576826]
[1748211177845,0.05,2540.9,2540.7,3.932]
[1748211178254,0.05,2540.9,2540.1,0.809]
[1748211178465,0.55,2540.7,2539.3,4.741]
[1748211178615,3.93655094,2540.3,2539.6,3.93752679]
[1748211178809,0.55,2540.7,2539.3,5.2151]
[1748211179119,3.93678031,2540.2,2539.6,3.93750572]
[1748211179324,3.9365378,2540.4,2539.8,3.93730303]
[1748211179645,3.9365378,2540.4,2539.6,3.93750821]
[1748211179646,3.9366276,2540.3,2539.6,3.93750821]
[1748211179941,0.7825,2540.8,2539.3,4.741]
[1748211180144,3.93687996,2540.1,2539.4,3.931]
[1748211180446,3.9367841,2540.2,2539.5,4.4117267]
[1748211180739,0.55,2540.7,2539.5,4.4117267]
[1748211180740,3.93689184,2540.1,2539.6,3.93760171]
[1748211180905,0.55,2540.6,2539.4,3.931]
[1748211181103,0.55,2540.1,2539.0,0.7918]
[1748211181338,0.55,2540.0,2538.6,4.681]
[1748211181540,0.55,2539.4,2538.2,0.75]
[1748211181746,0.55,2539.4,2538.6,3.93903814]
[1748211181955,3.93894449,2538.8,2538.2,8.62071418]
[1748211182156,0.8103,2539.5,2538.4,3.93948944]
[1748211182313,0.55,2539.4,2538.2,4.681]
[1748211182517,3.93901841,2538.8,2538.2,8.6206995]
[1748211182713,3.93943465,2538.5,2538.1,0.05]
[1748211183169,0.8103,2538.7,2538.1,3.98985019]
[1748211183462,0.8103,2539.1,2538.4,3.93939752]
[1748211183673,3.93865066,2539.0,2538.4,3.93944898]
[1748211183879,1.55063,2539.1,2538.1,0.05]
[1748211184175,0.55,2539.0,2538.1,0.05]
[1748211184338,0.8103,2539.1,2538.7,3.93900053]
[1748211184666,12.4278582,2540.8,2538.8,0.03939227]
[1748211184667,0.8259,2539.9,2538.8,0.03939227]
[1748211184830,0.8259,2540.6,2539.1,0.8174]
[1748211185025,1.75769,2540.6,2539.3,3.93809317]
[1748211185243,5.69379119,2540.6,2539.5,3.93778302]
[1748211185460,3.9363218,2540.5,2539.9,3.93706082]
[1748211185767,5.69378586,2540.6,2539.9,3.93707829]
[1748211185952,0.8259,2540.6,2540.0,0.03937006]
[1748211186270,0.51708879,2540.9,2539.9,4.7625]
[1748211186271,0.05,2540.9,2539.9,4.7625]
[1748211186469,0.05,2540.9,2540.1,3.93685287]
[1748211186770,0.05,2540.9,2540.1,5.20048894]
[1748211186971,0.05,2540.9,2539.9,4.7625]
[1748211187168,0.05,2540.9,2540.6,3.9360366]
[1748211187467,0.05,2540.9,2540.8,3.93576826]
[1748211187671,0.05,2540.9,2540.8,3.97512114]
[1748211187880,0.05,2540.9,2540.7,3.932]
[1748211188391,0.05,2540.9,2540.8,3.93576826]
[1748211189083,0.05,2540.9,2540.8,4.72176826]
[1748211191381,0.05,2540.9,2540.8,4.76111958]
[1748211191588,0.05,2540.9,2540.8,12.7611158]
[1748211191791,0.05,2540.9,2540.8,12.72176826]
[1748211191987,0.05,2540.9,2540.8,15.80780827]
[1748211192188,0.61370003,2541.1,2541.0,3.93545848]
[1748211192483,0.61370003,2541.1,2541.0,11.93545848]
[1748211192704,0.61370003,2541.1,2541.0,7.86645848]
[1748211192898,0.61370003,2541.1,2541.0,3.93545848]
[1748211193738,0.61370003,2541.1,2540.8,0.93895178]
[1748211193939,4.54910351,2541.1,2540.9,0.32853815]
[1748211194190,1.46211266,2541.1,2540.9,0.32853815]
[1748211194340,0.61370003,2541.1,2540.9,0.32853815]
[1748211194687,0.61370003,2541.1,2541.0,3.93545848]
[1748211194855,0.61370003,2541.1,2541.0,4.2639837]
[1748211196538,0.61370003,2541.1,2541.0,0.32852522]
[1748211196776,0.61370003,2541.1,2541.0,5.0440837]
[1748211196940,0.49100003,2541.1,2541.0,14.72862529]
[1748211197142,0.05,2541.9,2541.8,3.93421984]
[1748211197388,0.05,2541.9,2541.8,8.65421984]
[1748211197687,0.05,2542.9,2542.8,3.93267264]
[1748211197873,0.05,2542.9,2542.8,7.86267264]
[1748211198054,0.05,2542.9,2542.8,9.1200709]
[1748211198256,0.05,2542.9,2542.8,17.1200709]
[1748211198676,0.05,2543.9,2542.8,17.1200709]
[1748211198677,0.05,2543.9,2543.2,11.9320541]
[1748211198884,0.05,2543.9,2543.7,3.9312812]
[1748211200112,0.05,2543.9,2543.8,4.70962666]
[1748211200271,0.05,2543.9,2543.8,14.62959055]
[1748211200471,0.05,2543.9,2543.8,6.62959055]
[1748211200691,0.05,2543.9,2543.8,4.70962666]
[1748211200877,0.05,2543.9,2543.8,4.74892925]
[1748211201186,0.05,2543.9,2543.8,3.93112666]
[1748211201357,0.05,2543.9,2543.1,3.929]
[1748211201565,0.05,2543.9,2543.3,3.93180757]
[1748211201746,0.05,2543.9,2543.1,3.929]
[1748211202288,0.05,2543.9,2543.3,3.93180309]
[1748211202608,0.05,2543.9,2543.1,3.929]
[1748211202789,3.93115199,2543.8,2543.1,3.929]
[1748211202972,0.05,2543.9,2543.3,3.9318995]
[1748211203179,0.05,2543.9,2543.4,3.9317449]
[1748211203373,0.05,2543.9,2543.3,3.93185858]
[1748211203565,3.98102532,2543.9,2543.3,3.93188277]
[1748211203742,3.93115349,2543.8,2543.1,3.93209824]
[1748211203948,0.8103,2543.7,2543.1,4.26045545]
[1748211204185,4.74160951,2543.7,2543.1,0.32825394]
[1748211204490,0.7931,2543.4,2543.1,0.32825394]
[1748211204645,0.7931,2542.7,2541.6,2.03357533]
[1748211204845,0.7931,2542.7,2541.8,3.93421984]
[1748211205093,0.55,2542.6,2541.8,3.93419688]
[1748211205306,4.72716957,2541.9,2541.6,2.03357533]
[1748211205507,0.7931,2541.9,2541.6,2.03357533]
[1748211205708,4.72725963,2541.9,2541.6,2.03357533]
[1748211205915,3.88105153,2541.7,2541.6,2.03357533]
[1748211206068,4.43105153,2541.7,2541.6,2.03357533]
[1748211206515,4.48437463,2541.7,2541.6,2.03357533]
[1748211206812,0.7931,2541.9,2541.7,3.93434116]
[1748211206974,0.7931,2541.9,2541.6,2.03357533]
[1748211207410,5.19993571,2541.9,2541.6,2.03357533]
[1748211207566,0.7931,2541.9,2541.6,2.03357533]
[1748211207771,3.93437463,2541.7,2541.6,2.03357533]
[1748211208188,4.48437463,2541.7,2541.6,2.03357533]
[1748211209715,0.7931,2541.9,2541.3,3.928]
[1748211210009,0.7931,2541.9,2541.4,0.3928]
[1748211210213,0.55,2541.6,2541.1,0.05]
[1748211210385,3.93514874,2541.2,2541.1,0.05]
[1748211210712,5.25214874,2541.2,2541.1,0.05]
[1748211211009,9.38714874,2541.2,2541.1,0.05]
[1748211211174,5.25214874,2541.2,2541.1,0.05]
[1748211211370,6.17086313,2541.2,2541.1,0.05]
[1748211212173,14.17086313,2541.2,2541.1,0.05]
[1748211212486,3.93639363,2540.4,2540.1,0.05]
[1748211212673,3.93578498,2540.8,2540.2,3.93655245]
[1748211212874,0.8132,2541.0,2540.2,0.39865525]
[1748211213073,0.8132,2541.4,2541.1,3.93527383]
[1748211213410,0.8132,2541.4,2540.4,3.93634632]
[1748211213582,0.8132,2541.4,2540.5,3.93617916]
[1748211213783,4.74805427,2541.4,2540.4,3.93626069]
[1748211214009,0.8132,2541.4,2540.5,4.36918487]
[1748211214212,0.8132,2541.4,2540.5,0.39362607]
[1748211214410,0.55,2541.3,2540.5,3.929]
[1748211214629,8.0,2541.9,2540.5,3.929]
[1748211214630,0.8288,2541.8,2540.7,3.93584376]
[1748211214778,0.8288,2541.8,2541.4,3.93473052]
[1748211215156,0.8288,2541.8,2541.3,3.93490243]
[1748211215282,0.8288,2541.8,2541.1,3.929]
[1748211215477,0.8288,2541.8,2541.4,3.93468981]
[1748211215813,0.8288,2541.8,2541.5,3.93456503]
[1748211216184,0.7509,2542.2,2541.2,3.93514874]
[1748211216394,0.32832947,2542.2,2541.4,3.93483906]
[1748211216610,0.32832947,2542.2,2541.1,4.3219]
[1748211216611,3.93393488,2542.0,2541.5,4.32813993]
[1748211216785,3.9339103,2542.0,2540.4,1.22349799]
[1748211216995,7.7081,2541.9,2540.4,1.22349799]
[1748211217199,0.55,2541.8,2540.4,1.22349799]
[1748211217400,4.48452943,2541.6,2540.9,3.93550631]
[1748211217714,3.93475632,2541.5,2540.9,3.93550631]
[1748211217886,3.93468424,2541.5,2541.0,3.93535439]
[1748211218091,0.55,2541.6,2540.6,3.93607809]
[1748211218290,0.7561,2541.9,2540.5,4.45142689]
[1748211218524,4.48441288,2541.7,2541.1,3.93524041]
[1748211218676,0.55,2541.7,2540.6,0.52160269]
[1748211218876,0.55,2541.6,2540.5,0.5152498]
[1748211219115,3.93481782,2541.5,2540.8,3.93567579]
[1748211219417,0.7568,2541.1,2540.4,3.93633011]
[1748211219591,0.7568,2541.1,2540.4,3.93624064]
[1748211219794,3.93553352,2541.0,2540.3,7.86548205]
[1748211220228,3.93553352,2541.0,2540.1,0.05]
[1748211220229,1.65943335,2541.0,2540.1,0.05]
[1748211220444,5.59489697,2541.0,2540.3,3.93641048]
[1748211220733,0.55,2541.0,2540.1,0.05]
[1748211220898,0.7896,2541.5,2540.4,3.93638797]
[1748211221085,0.7896,2541.5,2540.7,3.93592317]
[1748211221281,0.7896,2541.5,2540.5,7.86621874]
[1748211221483,0.775,2542.0,2540.6,0.7692]
[1748211221684,3.9342626,2541.8,2540.7,0.86354187]
[1748211221927,3.93437463,2541.7,2540.7,0.86354187]
[1748211222226,3.93470712,2541.5,2541.0,3.93535552]
[1748211222527,4.48461103,2541.6,2541.1,3.93524608]
[1748211222689,3.93469341,2541.5,2541.0,3.93539272]
[1748211223103,3.93469341,2541.5,2541.0,28.93539272]
[1748211223627,3.9345539,2541.6,2541.0,25.0]
[1748211223922,3.934698,2541.5,2541.0,28.9353538]
[1748211224130,3.93460879,2541.6,2541.1,3.93525914]
[1748211224685,0.32832947,2541.9,2541.2,3.93514874]
[1748211224883,4.26246793,2541.9,2541.1,3.28708455]
[1748211225217,0.32832947,2541.9,2541.5,3.93466258]
[1748211225422,3.93422218,2541.8,2541.3,3.9348968]
[1748211225618,0.32832947,2541.9,2541.6,3.93443432]
[1748211225825,0.32832947,2541.9,2541.4,3.93468751]
[1748211226033,0.32832947,2541.9,2541.6,3.93442113]
[1748211226266,0.32832947,2541.9,2541.6,3.93441658]
[1748211226578,0.32832947,2541.9,2541.8,3.93421984]
[1748211226776,0.7668,2542.4,2541.8,3.93421984]
[1748211227378,0.7668,2542.4,2541.6,3.93]
[1748211227536,0.7668,2542.4,2541.7,3.93426737]
[1748211227841,4.70020881,2542.4,2541.8,3.93410789]
[1748211228037,4.70020881,2542.4,2541.6,4.399]
[1748211228038,0.7668,2542.4,2542.1,3.93366034]
[1748211228425,0.7668,2542.4,2542.0,3.93384307]
[1748211228622,0.7668,2542.4,2542.0,3.93376726]
[1748211228878,0.7668,2542.4,2542.1,3.93367617]
[1748211229372,0.7668,2542.4,2542.3,3.93344609]
[1748211229675,0.7668,2542.4,2541.6,0.469]
[1748211229818,0.7668,2542.4,2541.6,7.86451135]
[1748211230021,0.7668,2542.4,2542.0,3.93383525]
[1748211230256,0.7668,2542.4,2541.7,0.03934057]
[1748211230460,0.7668,2542.4,2542.1,3.93367424]
[1748211230839,4.70020885,2542.4,2541.6,3.93]
[1748211231038,0.7668,2542.4,2541.9,3.93406506]
[1748211231333,4.70009511,2542.4,2541.7,3.93437463]
[1748211231545,3.93414626,2541.9,2541.2,3.93511666]
[1748211231721,4.48383176,2542.1,2541.1,4.74118598]
[1748211231923,3.93395585,2542.0,2541.1,4.2188084]
[1748211232360,0.55,2541.8,2541.0,25.45889799]
[1748211232565,0.55,2541.6,2541.0,25.0]
[1748211232752,6.192,2541.7,2541.0,25.0]
[1748211232753,5.3066036,2541.1,2541.0,25.0]
[1748211233670,15.6686036,2541.1,2541.0,25.0]
[1748211233825,18.02188092,2541.1,2541.0,24.1667]
[1748211234163,18.02188092,2541.1,2541.0,20.1668]
[1748211234361,18.02188092,2541.1,2541.0,4.81853838]
[1748211234362,22.52278317,2541.1,2541.0,4.81853838]
[1748211234568,18.38778317,2541.1,2541.0,4.81853838]
[1748211234735,22.31678317,2541.1,2541.0,4.81853838]
[1748211235354,22.64511264,2541.1,2541.0,4.81853838]
[1748211236614,16.90911264,2541.1,2541.0,4.81853838]
[1748211236909,28.83911264,2541.1,2541.0,4.26853838]
[1748211237368,18.71611264,2541.1,2541.0,4.26853838]
[1748211237550,28.83911264,2541.1,2541.0,4.26853838]
[1748211238482,32.97411264,2541.1,2541.0,4.26853838]
[1748211239353,28.83911264,2541.1,2541.0,4.26853838]
[1748211239767,32.97411264,2541.1,2541.0,4.26853838]
[1748211240677,32.97411264,2541.1,2539.2,0.7526]
[1748211240678,4.48669789,2540.2,2539.2,0.7526]
[1748211240881,17.8441293,2540.2,2539.2,0.7526]
[1748211241191,17.8441293,2540.2,2539.1,0.05]
[1748211241192,28.2061293,2540.2,2539.1,0.05]
[1748211241562,28.56623155,2540.2,2539.1,0.05]
[1748211241999,4.48824826,2539.2,2539.1,0.05]
[1748211242203,23.83637309,2539.2,2539.1,0.05]
[1748211242570,3.93979985,2538.2,2538.0,0.45889799]
[1748211242787,0.55,2538.5,2538.0,0.45889799]
[1748211243005,4.48941637,2538.5,2538.0,4.39890501]
[1748211243163,6.195,2538.6,2538.0,0.45889799]
[1748211243358,6.195,2538.6,2538.4,3.93940724]
[1748211243572,6.195,2538.6,2538.4,3.93941746]
[1748211243773,3.931,2538.8,2538.0,0.45889799]
[1748211243774,10.13388267,2538.8,2538.3,3.93959896]
[1748211243978,6.195,2538.8,2538.3,3.93958455]
[1748211244176,0.36590225,2539.0,2538.6,3.93916234]
[1748211244393,0.36590225,2539.0,2538.2,3.93979985]
[1748211244593,0.7601,2539.2,2538.4,0.7826]
[1748211244906,6.197,2539.3,2538.2,0.39897999]
[1748211245207,6.197,2539.3,2538.2,3.93979985]
[1748211245361,6.197,2539.3,2538.5,0.7614]
[1748211245704,10.13523929,2539.3,2538.7,3.93890862]
[1748211246006,10.13523929,2539.3,2538.5,0.7614]
[1748211246007,0.32832947,2539.2,2538.5,0.7614]
[1748211246163,3.9390239,2538.7,2538.0,0.7614]
[1748211246363,3.93942341,2538.5,2537.9,3.94019075]
[1748211246558,3.93973461,2538.3,2537.7,4.69411505]
[1748211246776,4.48979985,2538.2,2537.2,0.45889799]
[1748211246976,4.48979985,2538.2,2537.3,0.7536]
[1748211247175,5.29589985,2538.2,2537.3,0.7536]
[1748211247490,5.29589985,2538.2,2537.3,4.69471398]
[1748211247694,5.29589985,2538.2,2537.2,0.45889799]
[1748211247900,13.29589985,2538.2,2537.2,0.45889799]
[1748211248063,13.29589985,2538.2,2537.1,0.05]
[1748211248064,23.89261592,2538.2,2537.1,0.05]
[1748211248264,4.49135267,2537.2,2537.1,0.05]
[1748211248505,10.68935267,2537.2,2537.1,0.05]
[1748211248907,6.748,2537.2,2537.1,0.05]
[1748211249096,10.68935267,2537.2,2537.1,0.05]
[1748211250111,6.198,2537.8,2537.1,0.05]
[1748211250268,6.198,2537.8,2537.4,3.94094693]
[1748211250463,0.825,2538.0,2537.3,3.94116149]
[1748211250692,6.198,2538.0,2537.3,0.48179615]
[1748211250894,8.496,2538.2,2537.3,0.48179615]
[1748211251168,6.2,2538.1,2537.3,3.94115875]
[1748211251369,8.496,2538.2,2537.8,3.94026977]
[1748211251681,8.496,2538.2,2537.0,3.94152839]
[1748211251682,3.934,2538.1,2537.0,3.94152839]
[1748211251883,0.55,2537.8,2537.1,0.05]
[1748211252079,3.94100331,2537.5,2537.1,0.05]
[1748211252294,3.94135267,2537.2,2537.1,0.05]
[1748211252497,4.49135267,2537.2,2537.1,0.05]
[1748211252807,4.7117812,2537.9,2537.1,0.05]
[1748211252808,0.7559,2538.8,2537.1,4.7679]
[1748211253009,3.93965298,2538.3,2537.8,3.94034159]
[1748211253311,8.7677,2538.2,2537.2,0.7839]
[1748211253470,8.7677,2538.2,2537.1,0.05]
[1748211253471,3.94101504,2537.5,2537.1,0.05]
[1748211253672,3.94106357,2537.4,2537.1,0.05]
[1748211253868,3.94106933,2537.4,2537.1,0.05]
[1748211254236,4.49135267,2537.2,2537.1,0.05]
[1748211254393,0.55,2537.3,2537.1,0.05]
[1748211254718,0.55,2537.7,2537.1,0.05]
[1748211254914,6.201,2537.5,2537.1,0.05]
[1748211255135,6.201,2537.5,2537.2,3.94135042]
[1748211255412,6.201,2537.5,2537.1,0.05]
[1748211255585,6.201,2537.5,2537.4,3.94104201]
[1748211255789,6.201,2537.5,2537.1,3.99143565]
[1748211256002,6.201,2537.5,2537.2,3.94133968]
[1748211256386,4.49065925,2537.7,2537.2,3.94133968]
[1748211256592,4.49088779,2537.5,2537.1,0.05]
[1748211256793,4.81921726,2537.5,2537.1,0.05]
[1748211256995,0.55,2537.2,2537.1,0.05]
[1748211257212,0.32832947,2537.4,2537.1,3.99138007]
[1748211257598,0.32832947,2537.4,2537.1,0.05]
[1748211257925,3.94135267,2537.2,2537.1,0.05]
[1748211258224,4.49135267,2537.2,2537.1,0.05]
[1748211258423,4.81968214,2537.2,2537.1,0.05]
[1748211258593,5.59458214,2537.2,2537.1,0.05]
[1748211258800,16.35338097,2537.2,2537.1,0.05]
[1748211258997,19.23803212,2537.2,2537.1,0.05]
[1748211259201,19.23803212,2537.2,2535.1,0.05]
[1748211259202,3.94290671,2536.2,2535.1,0.05]
[1748211259531,17.40140802,2537.1,2535.1,0.05]
[1748211259532,3.94364709,2535.8,2535.1,0.05]
[1748211259727,0.55,2535.4,2535.1,0.05]
[1748211259934,8.55,2535.7,2535.1,0.05]
[1748211260115,9.5636,2535.7,2535.1,0.05]
[1748211260427,13.28896197,2535.2,2535.1,0.05]
[1748211260628,17.22396197,2535.2,2535.1,0.05]
[1748211260796,3.94571108,2534.4,2534.1,0.05]
[1748211260997,8.0,2535.1,2534.1,0.05]
[1748211260998,4.49564335,2534.5,2534.1,0.05]
[1748211261198,0.55,2534.5,2534.1,0.05]
[1748211261399,0.55,2534.5,2533.5,6.84824774]
[1748211261400,4.49601846,2534.2,2533.5,2.44227838]
[1748211261610,0.55,2533.8,2533.5,2.44227838]
[1748211261819,0.55,2534.0,2533.5,2.44227838]
[1748211262182,0.55,2534.1,2533.5,6.38935921]
[1748211262387,0.9223,2533.5,2533.1,2.6706447]
[1748211262588,0.9223,2533.5,2532.3,3.12142461]
[1748211262589,12.49788787,2533.0,2532.3,3.12142461]
[1748211262788,12.49788787,2533.0,2532.3,2.66252662]
[1748211262789,19.34421734,2533.0,2532.3,2.66252662]
[1748211262989,23.28221734,2533.0,2532.3,2.66252662]
[1748211263225,12.82621734,2533.0,2532.3,2.66252662]
[1748211263387,25.96472916,2533.0,2532.3,2.66252662]
[1748211263589,15.50872916,2533.0,2532.9,3.22805526]
[1748211263787,16.76421734,2533.0,2532.9,3.22805526]
[1748211263986,1.27805518,2533.0,2532.9,3.22805526]
[1748211264191,0.72805518,2533.0,2532.9,3.22805526]
[1748211264491,1.27805518,2533.0,2532.9,7.176099]
[1748211264689,0.32832947,2533.0,2532.9,3.22805526]
[1748211265502,4.82621734,2533.0,2532.9,3.22805526]
[1748211265688,14.036846,2533.0,2532.9,2.87394081]
[1748211265888,14.036846,2533.0,2532.9,2.22854081]
[1748211266518,14.036846,2533.0,2532.1,4.99333179]
[1748211266519,5.47695813,2533.0,2532.1,0.05]
[1748211266722,0.72785813,2533.0,2532.3,3.94897918]
[1748211267032,8.55,2532.9,2532.4,3.94871206]
[1748211267191,0.32832947,2532.8,2532.4,3.94871206]
[1748211267388,0.32832947,2532.8,2532.3,3.94897918]
[1748211267701,4.49807621,2532.9,2532.3,3.94894479]
[1748211267702,11.94809494,2532.9,2532.3,3.94894479]
[1748211267909,4.06971684,2532.7,2532.2,0.8204]
[1748211268117,0.12204562,2532.6,2532.3,3.94885299]
[1748211268303,3.939,2533.3,2532.3,3.94896226]
[1748211268510,0.38494307,2533.3,2532.4,1.92152053]
[1748211268857,3.939,2533.6,2532.5,0.00920088]
[1748211268992,3.94882325,2532.4,2532.3,0.00920052]
[1748211269191,7.88952351,2532.6,2532.1,0.05]
[1748211269387,0.804,2533.4,2532.2,0.00920197]
[1748211269711,6.523,2533.7,2532.5,1.93544469]
[1748211269898,3.941,2534.0,2533.0,1.99421788]
[1748211270098,3.941,2534.0,2533.6,3.94682706]
[1748211270428,3.941,2534.0,2533.7,0.00919653]
[1748211270633,3.94620968,2534.1,2533.4,0.00919616]
[1748211270835,0.39389707,2534.1,2533.4,0.00919616]
[1748211271033,0.55,2534.0,2533.4,0.00919616]
[1748211271339,3.94699403,2533.6,2533.0,3.95704734]
[1748211271635,3.94695295,2533.6,2533.0,0.00919725]
[1748211271837,1.3333,2533.5,2532.9,0.0091987]
[1748211272035,0.55,2533.4,2532.3,0.8018]
[1748211272338,3.94788737,2533.1,2532.5,3.94860783]
[1748211272541,4.4975081,2533.3,2532.6,3.94837516]
[1748211272855,3.94731522,2533.4,2532.8,3.94810854]
[1748211272994,3.941,2533.3,2532.8,3.94810854]
[1748211273338,0.8049,2533.9,2532.9,3.94804374]
[1748211273510,4.75138813,2533.9,2533.3,3.94730124]
[1748211273705,0.8049,2533.9,2533.5,3.94699324]
[1748211274040,0.8049,2533.9,2532.8,1.95513038]
[1748211274041,3.94739037,2533.4,2532.7,3.94821205]
[1748211274189,3.94739037,2533.4,2532.3,0.8018]
[1748211274190,3.94757933,2533.2,2532.8,0.00919979]
[1748211274392,3.94747823,2533.3,2532.7,3.94829992]
[1748211274628,3.941,2533.5,2532.6,3.94851141]
[1748211274841,3.94735148,2533.4,2532.8,3.94810443]
[1748211274999,4.3901,2533.5,2533.0,3.94783905]
[1748211275198,4.3901,2533.5,2532.3,0.8018]
[1748211275413,8.33731533,2533.5,2532.8,3.94819962]
[1748211275637,4.3901,2533.5,2532.7,3.94830518]